Cogmind - Beta 17.1 @@@ ROGUE MODE // 2026.09.22 @ 08:57:02 Player: Err. String Expected Got Nil Result: Destroyed by YI-UF0 with YI-UF0's Doublenader Performance ------------- Evolutions (0) 0 Regions Visited (2) 400 Robots Destroyed (34) 170 Value Destroyed (679) 679 Prototype IDs (0) 0 Alien Tech Used (0) 0 Bonus (0) 0 TOTAL SCORE: 1249 Bonus ------- None Cogmind --------- Core Integrity 0/250 Matter 300/300 Energy 93/100 System Corruption 5% Temperature Cool (65) Movement Core (700) Ox13 Location -10/Mines Parts ------- > --- POWER (1) -------- (None) > --- PROPULSION (2) --- (None) > --- UTILITY (2) ------ High-capacity Storage Unit Seismic Detector (fused) > --- WEAPON (2) ------- Light Assault Rifle > --- INVENTORY (20) --- Light Ion Engine Light Treads Light Treads Light Treads Light Treads Improved Treads Improved Treads Seismic Detector Hacking Suite Light Assault Rifle Light Assault Rifle Shotgun Shotgun Light Cannon Mini Grenade Launcher Mini Grenade Launcher Mini Grenade Launcher Mini Grenade Launcher Datajack Mining Laser Peak State ------------ > --- POWER ------------ Ion Engine > --- PROPULSION ------- Improved Treads Improved Treads > --- UTILITY ---------- High-capacity Storage Unit Seismic Detector > --- WEAPON ----------- Light Assault Rifle Mini Grenade Launcher > --- INVENTORY -------- Light Ion Engine Light Ion Engine Light Treads Light Treads Light Treads Improved Treads Improved Treads Seismic Detector Medium Laser Light Assault Rifle Light Assault Rifle Shotgun Shotgun Light Cannon Mini Grenade Launcher Mini Grenade Launcher Mini Grenade Launcher Mining Laser [Rating: 12] Favorites ----------- Power Ion Engine Engine Ion Engine Propulsion Improved Treads Treads Improved Treads Leg Aluminum Leg Utility High-capacity Storage Unit Device Seismic Detector Storage High-capacity Storage Unit Weapon Light Assault Rifle Energy Gun Medium Laser Ballistic Gun Light Assault Rifle Launcher Mini Grenade Launcher Build | -11 -10 -10 ------- Run | Yrd Mat Min Slots Evolved . | . . . Power . | . . . Propulsion . | . . . Utility . | . . . Weapon . | . . . Parts Attached 11 | 2 9 . Power 2 | . 2 . Engine 2 | . 2 . Core . | . . . Reactor . | . . . Propulsion 3 | . 3 . Treads 3 | . 3 . Leg . | . . . Wheel . | . . . Hover . | . . . Flight . | . . . Utility 3 | 1 2 . Device 2 | 1 1 . Storage 1 | . 1 . Processor . | . . . Hackware . | . . . Protection . | . . . Artifact . | . . . Weapon 3 | 1 2 . Energy Gun 1 | 1 . . Energy Cannon . | . . . Ballistic Gun 1 | . 1 . Ballistic Cannon . | . . . Launcher 1 | . 1 . Special Weapon . | . . . Impact Weapon . | . . . Slashing Weapon . | . . . Piercing Weapon . | . . . Special Melee Weapon . | . . . Unidentified Prototypes . | . . . Parts Lost 5 | . 1 4 Power 2 | . 1 1 Propulsion 2 | . . 2 Utility . | . . . Weapon 1 | . . 1 Highest Loss Streak 4 | . 1 4 To Critical Strikes . | . . . Average Backups 15 | 5 16 20 Power 1 | 1 1 1 Propulsion 4 | 2 4 6 Utility 1 | . 1 2 Weapon 8 | 1 8 10 Tool/Special . | . . . Unused Backups 20 | . 6 14 Power 1 | . . 1 Propulsion 3 | . . 3 Utility 5 | . 4 1 Weapon 10 | . 2 8 Tool/Special 1 | . . 1 Average Slot Usage (%) 95 | . 95 97 Engine 13 | . 14 12 Treads 27 | . 27 26 Device 10 | . 10 14 Storage 14 | . 14 14 Energy Gun 2 | . 2 2 Ballistic Gun 25 | . 25 25 Peak Build Rating 12 | 7 12 12 Average Rating 10 | 6 10 11 On Entrance 8 | 6 7 12 Avg Prop Armor Cover (%) . | . . . Naked Turns . | . . . Heaviest Build 49 | 12 48 49 Greatest Support 46 | 20 46 46 Greatest Overweight (x) 3 | . 3 1 Average Overweight (x) . | . . 1 Largest Inventory Capacity 20 | 8 20 20 Average Capacity 18 | 8 18 20 Most Carried 20 | 7 20 20 Average Carried 15 | 5 16 20 Final Capacity 20 | 8 20 20 Final Carried 20 | 7 20 20 Class Distribution -------------------- 100% | Mutant Dominant Class ---------------- Mutant | -10/Materials Mutant | -10/Mines Resources | -11 -10 -10 ----------- Run | Yrd Mat Min Matter Collected 638 | 236 402 . Remotely . | . . . Salvage Created 1027 | 145 882 . Parts 73 | 11 62 . Haulers Intercepted 2 | . 2 . Recyclers Shooed 2 | . 2 . Parts Field Recycled . | . . . Retrieved Matter . | . . . Parts Self-Destructed . | . . . Prevented . | . . . Parts Restored . | . . . Kills | -11 -10 -10 ------- Run | Yrd Mat Min Combat Hostiles Destroyed 16 | . 16 . Guns 10 | . 10 . AOE 6 | . 6 . Classes Destroyed 9 | 2 7 . Worker 2 | . 2 . Tunneler 4 | 3 1 . Hauler 2 | . 2 . Recycler 4 | 1 3 . Mechanic 1 | . 1 . Operator 3 | . 3 . Watcher 2 | . 2 . Swarmer 3 | . 3 . Grunt 13 | . 13 . Best Kill Streak 5 | 2 5 . Combat Bots Only 5 | . 5 . Max Kills in Single Turn 2 | 1 2 . Gunslinging . | . . . Exploded 2 | . 2 . Melee . | . . . Uniques/NPCs Destroyed . | . . . Combat | -11 -10 -10 -------- Run | Yrd Mat Min Hostile Shots Fired 77 | . 61 16 Missed 22 | . 20 2 Hits 55 | . 41 14 Projectile 55 | . 41 14 AOE 14 | . . 14 Critical Strikes 1 | . 1 . Damage Taken 941 | . 474 467 Core 252 | . 112 140 Absorbed by Shields . | . . . Core Remaining (%) 100 | 100 . . Volleys Fired 126 | 16 104 6 Largest 2 | 2 2 2 Hottest 70 | 70 70 70 Shots Fired 243 | 32 199 12 Gun 234 | 32 190 12 Cannon . | . . . Launcher 9 | . 9 . Special . | . . . Kinetic 206 | 16 184 6 Thermal 28 | 16 6 6 Explosive 9 | . 9 . Electromagnetic . | . . . Robot Hit Streak 8 | 5 8 8 Robot Miss Streak 5 | 3 5 2 Penetration Max . | . . . Secondary Targets 2 | . 2 . Max Gunslinging Chain 1 | . 1 . Shots Hit Robots 136 | 17 110 9 Core Hits 70 | 8 60 2 Critical Kills . | . . . Critical Parts Destroyed 1 | . 1 . Critical Strikes 1 | . 1 . Destroy 1 | . 1 . Melee Attacks . | . . . Impact . | . . . Slashing . | . . . Piercing . | . . . Sneak Attacks . | . . . Combat Hostiles . | . . . Follow-up Attacks . | . . . Damage Inflicted 1715 | 173 1454 88 Guns 1156 | 173 895 88 Cannons . | . . . Explosions 559 | . 559 . Melee . | . . . Ramming . | . . . Kinetic 934 | 61 846 27 Thermal 222 | 112 49 61 Explosive 559 | . 559 . Electromagnetic . | . . . Impact . | . . . Slashing . | . . . Piercing . | . . . Highest Corruption 5 | . 5 5 Average Corruption 4 | . 4 5 Corruption Purged . | . . . Corruption Blocked . | . . . Effects 9 | . 6 3 Matter Fused 2 | . 2 . Heat Flow Errors 3 | . 2 1 Parts Fused 1 | . 1 . Data Loss (minor) 2 | . 1 1 Data Loss (major) 1 | . . 1 Overload Shots . | . . . Overflow Damage 2 | . 2 . Projectiles . | . . . Explosions 2 | . 2 . Melee . | . . . Knockbacks . | . . . Impact . | . . . Kinetic . | . . . Secondary . | . . . Self-Inflicted Damage . | . . . Shots . | . . . Rammed . | . . . Targets Rammed . | . . . Kicked . | . . . Crushed . | . . . Highest Temperature 270 | 122 270 163 Average Temperature 57 | 52 57 67 Received Heat Transfer 186 | . 186 . Siege Activations . | . . . Martial Activations . | . . . Shielding Activations . | . . . Robots Disrupted . | . . . Combat Hostiles . | . . . Robots Corrupted . | . . . Combat Hostiles . | . . . Parts Fried . | . . . Impact Corruptions . | . . . Robots Melted . | . . . Combat Hostiles . | . . . Parts Melted 1 | 1 . . Heat Transferred 666 | 333 148 185 Parts Sabotaged . | . . . Parts Stolen . | . . . Parts Stripped . | . . . Power Chain Reactions . | . . . Alert | -11 -10 -10 ------- Run | Yrd Mat Min Maximum Alert Level 1 | . 1 . Low Security (%) 63 | 100 58 100 Level 1 36 | . 41 . Level 2 . | . . . Level 3 . | . . . Level 4 . | . . . Level 5 . | . . . High Security . | . . . Max Security . | . . . Peak Influence 341 | 5 341 101 Initial 101 | . . 101 Average 158 | 1 175 79 Influence Increases 703 | 20 683 . Destroy 0b10 Robot/C 320 | . 320 . Destroy 0b10 Robot/NC 90 | 20 70 . Destroy Leader 98 | . 98 . Successful Hack 30 | . 30 . Select Force Hacks 60 | . 60 . Disable Machine 45 | . 45 . Destroy Structure 30 | . 30 . Lose Combat Pursuer 30 | . 30 . Influence Decreases 682 | 20 423 239 Entered New Map 159 | . . 159 Time Decay 473 | 20 413 40 Lost Part 50 | . 10 40 Squads Dispatched 6 | . 6 . Investigation 3 | . 3 . Extermination . | . . . Reinforcement 3 | . 3 . Assault . | . . . Garrison . | . . . Intercept . | . . . Searches Triggered . | . . . Construction Impeded . | . . . Haulers Reinforced . | . . . Active Scanning Responses . | . . . Cargo Convoy Interrupts . | . . . Stealth | -11 -10 -10 --------- Run | Yrd Mat Min Distress Signals 2 | . 2 . Communications Jammed . | . . . Distress Signals . | . . . Times Spotted 40 | . 39 1 Peak Tracking Total 3 | . 3 1 Tactical Retreats 2 | . 2 . Traps | -11 -10 -10 ------- Run | Yrd Mat Min Traps Triggered 5 | . 5 . Indirectly . | . . . Trap Hack Attempts . | . . . Triggered . | . . . Disarmed . | . . . Reprogrammed . | . . . Reused . | . . . Traps Extracted . | . . . Installed . | . . . Triggered . | . . . Machines | -11 -10 -10 ---------- Run | Yrd Mat Min Machines Disabled 3 | . 3 . Max in Single Turn 3 | . 3 . Machines Repaired . | . . . Machines Dismantled . | . . . Machines Sabotaged . | . . . Overloaded Fab Kills . | . . . Hacking | -11 -10 -10 --------- Run | Yrd Mat Min Machines Accessed 7 | . 7 . Terminals 5 | . 5 . Fabricators . | . . . Repair Stations . | . . . Recycling Units 2 | . 2 . Scanalyzers . | . . . Garrison Access . | . . . Total Hacks 16 | . 16 . Successful 10 | . 10 . Failed 6 | . 6 . Catastrophic . | . . . Database Lockouts . | . . . Manual 15 | . 15 . Terminals 14 | . 14 . Fabricators . | . . . Repair Stations . | . . . Recycling Units 2 | . 2 . Scanalyzers . | . . . Garrison Access . | . . . Terminal Hacks 2 | . 2 . Robot Analysis 1 | . 1 . Terminal Index 1 | . 1 . Fabricator Hacks . | . . . Repair Station Hacks . | . . . Recycling Unit Hacks . | . . . Scanalyzer . | . . . Garrison Access Hacks . | . . . Unauthorized Hacks 8 | . 8 . Terminals 6 | . 6 . Operators 1 | . 1 . Skim 5 | . 5 . Fabricators . | . . . Repair Stations . | . . . Recycling Units 2 | . 2 . Tunnel 2 | . 2 . Scanalyzers . | . . . Garrison Access . | . . . Data Cores Recovered . | . . . Used . | . . . Hacking Detections 5 | . 5 . Full Trace Events . | . . . Feedback Events . | . . . Feedback Blocked . | . . . Robot Schematics Acquired . | . . . Robots Built . | . . . Authchips . | . . . Time . | . . . Total Robot Build Rating . | . . . Part Schematics Acquired . | . . . Parts Built . | . . . Authchips . | . . . Time . | . . . Total Part Build Rating . | . . . Part Studies Acquired . | . . . Parts Repaired . | . . . Time . | . . . Parts Recycled . | . . . Recycled Matter . | . . . Retrieved Matter . | . . . Retrieved Components . | . . . Parts Scanalyzed . | . . . Part Schematics Acquired . | . . . Parts Damaged . | . . . Bothacking | -11 -10 -10 ------------ Run | Yrd Mat Min Used RIF Installer . | . . . Robots Hacked . | . . . Non-combat . | . . . Combat . | . . . Robot Hacks Applied . | . . . Relay Couplers Released . | . . . Fabnet Peak Effective % . | . . . Robots Rewired . | . . . Allies Hacked . | . . . Hacks Repelled . | . . . Allies | -11 -10 -10 -------- Run | Yrd Mat Min Total Allies . | . . . Largest Group . | . . . Highest-Rated Group . | . . . Highest-Rated Ally . | . . . Total Orders . | . . . Ally Attacks . | . . . Total Damage . | . . . Kills . | . . . Allies Corrupted . | . . . Allies Melted . | . . . Intel | -11 -10 -10 ------- Run | Yrd Mat Min Active Infowar (turns) 1221 | 33 1089 99 Seismic 1221 | 33 1089 99 Robot Analysis Total 1 | . 1 . Derelict Logs Recovered 1 | . . 1 Drone Launches . | . . . Drone Recoveries . | . . . Exploration | -11 -10 -10 ------------- Run | Yrd Mat Min Turns Passed 1742 | 119 1524 99 Spaces Moved 622 | 53 535 34 Core 2 | . 2 . Treads 550 | . 516 34 Legs 70 | 53 17 . Wheels . | . . . Hover . | . . . Flight . | . . . Fastest Speed 120 | 120 120 240 Average Speed 213 | 120 221 240 Slowest Speed 240 | 120 240 240 Overloaded Moves . | . . . Propulsion Burnouts . | . . . Robots Hopped . | . . . Potential Cave-ins . | . . . Cave-ins Triggered . | . . . Exploration Rate (%) 30 | 4 77 11 Regions Visited 2 Branch Regions 1 Pre-discovered Areas 6 | . 5 1 Known Exits Taken 1 | . 1 . Unknown Exits Taken 1 | 1 . . Scrap Searched . | . . . Spaces Dug . | . . . Terrain Destroyed 36 | . 36 . Melee . | . . . Projectile . | . . . AOE 36 | . 36 . Terrain Rammed . | . . . Walls Destroyed . | . . . Machines Disabled . | . . . Actions | -11 -10 -10 --------- Run | Yrd Mat Min Total 838 | 80 717 41 Wait 40 | 4 36 . Move 620 | 52 534 34 Hop . | . . . Pick Up 24 | 4 20 . Fast Attach 2 | . 2 . Attach 3 | 1 2 . Detach 1 | . 1 . Swap 10 | 1 8 1 Drop 12 | 2 10 . Fire 126 | 16 104 6 Melee . | . . . Ram . | . . . Kick . | . . . Crush . | . . . Escape Stasis . | . . . Rewire . | . . . Trap . | . . . Miscellaneous . | . . . Route ------- -11/Scrapyard -10/Materials (discovered 5 exits: *Mat x3 / *Min / *Sub) -10/Mines (discovered 3 exits: Mat / Exi / Sub) History --------- Turn | Location | Event 11 | -11/Scrapyard | Discovered new exit (range 3) 120 | -11/Scrapyard | Entered Materials 307 | -10/Materials | Build established: Mutant 546 | -10/Materials | Discovered new exit (range 13) 955 | -10/Materials | Learned location of 2 exits from Mines 1011 | -10/Materials | Learned location of 1 exit from Storage 1055 | -10/Materials | Learned location of Subcaves (-10) 1088 | -10/Materials | Learned location of Storage (-9) 1113 | -10/Materials | Identified exit to Materials 1138 | -10/Materials | Learned Storage stockpile data 1185 | -10/Materials | Identified exit to Subcaves 1185 | -10/Materials | Identified exit to Mines 1221 | -10/Materials | Learned 2 Mines zone layouts 1265 | -10/Materials | Loaded intel: 19 non-interactive machine locations 1644 | -10/Materials | Entered Mines 1645 | -10/Mines | Identified exit to Exiles 1729 | -10/Mines | Core integrity fell below 50% 1742 | -10/Mines | Core integrity fell below 20% 1743 | -10/Mines | Destroyed by YI-UF0 with YI-UF0's Doublenader Last Messages --------------- 01720_ The unstable cave ceiling collapses. 01723_ System corrupted: Substantial component data lost. 01723_ The unstable cave ceiling collapses. 01730_ YI-UF0 mumbles something. 01732_ The unstable cave ceiling collapses. 01732_ Imp. Treads destroyed. 01734_ The unstable cave ceiling collapses. 01738_ U-05 Engineer lays Concrete. 01739_ The unstable cave ceiling collapses. 01739_ Ion Engine destroyed. 01739_ T-07 Excavator destroyed. 01739_ U-05 Engineer lays Concrete. 01740_ The unstable cave ceiling collapses. 01740_ U-05 Engineer lays Concrete. 01741_ The unstable cave ceiling collapses. 01741_ U-05 Engineer builds a Wall. 01743_ System corrupted: Component data lost. 01743_ Imp. Treads destroyed. 01743_ Med. Laser destroyed. Map ----- +----------------------------------------------------+ | ##?###### #####?????????????? | | ???# ##?????????????????? | | ???# ##?????????????????? | | ???# ### ### ##????????????????? | | ???# #?# #?####### #????????????????? | | ????????????????????????????????????????????? | | ????????????????????????????????????????????? | | ????????????????????????????????????????????? | | ????????????????????????????????????????????? | | ????????????????????????????????????????????? | | ???????????????????????#? #????????????????? | | ??????????????????????? # ??????????????? | | ??????????????????????? = % ????????????? | | ????????????????????#? * = ????????????? | | ????????????????????# # ?????????????? | | ????????????????????? # ?????????????? | | ????????????????????? # ??????????????? | | ?????????????????????# g # ??????????????? | | ?????????????????????? ! ???????????????? | | ?????????????????????? #= ???????????????? | | ??????????????????????# %####??????????????? | | ?????????????????????## #??????????????? | | ????????????????###### ##?????????????? | | ????????????????# #?????????????? | | ????????????????# ru #?????????????? | | ????????????????????## @ #?????????????? | | ????????????????????# ##?????????????? | | ????????????????????# ############???? | | ????????????????????## #???? | | ?????????????????????#### # ######### #???? | | ????????????????????????### #?####### #???? | | ??????????????????????????# ##?# #???? | | ??????????????????????????## #??# ##### #???? | | ???????????????????????????# #????????# #???? | | ???????????????????????????# #????????# #???? | | ???????????????????????????# ????????# #???? | | ???????????????????????????###????????# #???? | | ??????????????????????????????????????# #???? | | ??????????????????????????????????????# #???? | | ??????????????????????????????????????# #???? | | ??????????????????????????????????????# #???? | | ??????????????????????????????????????# #???? | | ??????????????????????????????????????# #???? | | ??????????????????????????????????????# #???? | | ???????????????????????????????>??????# ###?? | | ?????????????????????????????????????## #?? | | ????????????????????????????????????## #?? | | ???????????????????????????????????## #?? | | ???????????????????????????????????# #?? | | ????????????????????>??????????????# #?? | +----------------------------------------------------+ Best States ------------- Heat Dissipation 25 Energy Generation 10 Energy Capacity 250 Matter Stores 300 Matter Capacity 300 Sight Range 16 Terrain Scan Density 10 Evasion (%) 55 Recoil Reduction 2 Item Schematics ----------------- None Robot Schematics ------------------ None Fabricated ------------ Nothing Repaired ---------- Nothing Studied --------- None Alien Tech Used ----------------- None Achievements -------------- None Challenges ------------ None Game ------ Seed ChromionAntigravStreamer Manual? 0 Play Time 00:10:49 Cumulative 198.2 hours Start 2026.09.22 @ 08:46:45 End 2026.09.22 @ 08:57:02 Sessions 1 Manual Loads 0 Difficulty Rogue Special Mode None Game No. 139 Rogue 139 Adventurer 0 Explorer 0 Win Type - Total 6 Types 5/0/1/0/0/0/0/0/0/0 Lore% 65 Gallery% 53 Achievement% 47 Wizard Run 0 Options --------- Layout 2 ASCII 0 Keyboard 1 Movement Numpad Keybinds 0 Fullscreen 2 Font 32/SmallcapsGlow Map View 50x44 Zoom Use 0% Tactical HUD 1 Map Filters NONE Filters NONE Steam 1 RUN: 41a0e15b-a449-4ab3-90f7-95b14c9c9e57